[Event "NJSK 2021 Meisjes A&B"]
[Site "Almelo, Netherlands"]
[Date "2021.08.01"]
[Round "1.1"]
[White "Ricken, Katharina"]
[Black "Zubair, Javeria Komal"]
[Result "1-0"]
[TimeControl "90min/40moves + 30sec/move"]
[WhiteElo "2030"]
[BlackElo "1490"]

1. Nf3 {[%clk 01:30:58]} {[%emt 00:00:01]} c5 {[%clk 01:30:50]} {[%emt
00:00:11]} 2. b3 {[%clk 01:31:23]} {[%emt 00:00:05]} Nc6 {[%clk 01:31:09]}
{[%emt 00:00:11]} 3. Bb2 {[%clk 01:31:48]} {[%emt 00:00:05]} e6 {[%clk
01:30:57]} {[%emt 00:00:42]} 4. c4 {[%clk 01:31:55]} {[%emt 00:00:23]} Nf6
{[%clk 01:30:44]} {[%emt 00:00:42]} 5. g3 {[%clk 01:32:17]} {[%emt 00:00:09]}
Be7 {[%clk 01:30:54]} {[%emt 00:00:20]} 6. Bg2 {[%clk 01:32:42]} {[%emt
00:00:04]} O-O {[%clk 01:31:08]} {[%emt 00:00:17]} 7. O-O {[%clk 01:33:07]}
{[%emt 00:00:04]} d5 {[%clk 01:28:51]} {[%emt 00:02:48]} 8. cxd5 {[%clk
01:33:31]} {[%emt 00:00:06]} exd5 {[%clk 01:29:03]} {[%emt 00:00:18]} 9. d4
{[%clk 01:33:55]} {[%emt 00:00:06]} cxd4 {[%clk 01:25:16]} {[%emt 00:04:16]} 10.
Nxd4 {[%clk 01:33:59]} {[%emt 00:00:27]} Nxd4 {[%clk 01:24:25]} {[%emt
00:01:21]} 11. Bxd4 {[%clk 01:34:09]} {[%emt 00:00:19]} Be6 {[%clk 01:20:29]}
{[%emt 00:04:26]} 12. Nc3 {[%clk 01:34:28]} {[%emt 00:00:12]} a6 {[%clk
01:19:37]} {[%emt 00:01:22]} 13. Rc1 {[%clk 01:34:03]} {[%emt 00:00:54]} b5
{[%clk 01:08:15]} {[%emt 00:11:53]} 14. Bxf6 {[%clk 01:30:16]} {[%emt
00:04:17]} Bxf6 {[%clk 01:08:33]} {[%emt 00:00:11]} 15. Bxd5 {[%emt 00:03:50]}
Bh3 16. Bxa8 Qxa8 17. Nd5 Rd8 18. e4 Bxf1 19. Qxf1 h6 20. Qd1 {[%clk 01:26:56]}
Be5 21. Qc2 {[%clk 01:26:56]} Qa7 22. Qc5 {[%clk 01:26:56]} Qxc5 23. Rxc5
{[%clk 01:26:56]} f6 24. Kf1 {[%clk 01:26:56]} Re8 25. Rc6 {[%clk 01:26:56]}
Ra8 26. Ke2 {[%clk 01:26:56]} a5 27. Kd3 {[%clk 01:26:56]} a4 28. b4 {[%clk
01:26:56]} Rb8 29. f4 {[%clk 01:26:56]} Bb2 30. Rc8+ {[%clk 01:26:56]} Rxc8 31.
Ne7+ {[%clk 01:26:56]} Kf7 32. Nxc8 {[%clk 01:26:56]} Ke6 33. Na7 {[%clk
01:26:56]} f5 34. Nxb5 {[%clk 01:26:56]} fxe4+ 35. Kxe4 {[%clk 01:26:56]} Kd7
36. Kd5 {[%clk 01:26:56]} Bc1 37. Nd4 {[%clk 01:26:56]} Bd2 38. b5 {[%clk
01:26:56]} g6 39. Nf3 {[%clk 01:26:56]} 1-0

[Event "NJSK 2021 Meisjes A&B"]
[Site "Almelo, Netherlands"]
[Date "2021.08.01"]
[Round "1.2"]
[White "Den Heijer, Rolinde"]
[Black "De Zoeten, Cato"]
[Result "1-0"]
[TimeControl "90min/40moves + 30sec/move"]
[WhiteElo "1483"]
[BlackElo "1881"]

1. e4 {[%clk 01:30:58]} {[%emt 00:00:01]} c5 {[%clk 01:30:53]} {[%emt
00:00:08]} 2. Nf3 {[%clk 01:31:22]} {[%emt 00:00:05]} d6 {[%clk 01:31:19]}
{[%emt 00:00:04]} 3. d4 {[%clk 01:31:46]} {[%emt 00:00:06]} cxd4 {[%clk
01:31:44]} {[%emt 00:00:05]} 4. Nxd4 {[%clk 01:32:11]} {[%emt 00:00:05]} Nf6
{[%clk 01:32:06]} {[%emt 00:00:08]} 5. Nc3 {[%clk 01:32:33]} {[%emt 00:00:09]}
a6 {[%clk 01:32:31]} {[%emt 00:00:04]} 6. Bc4 {[%clk 01:32:34]} {[%emt
00:00:29]} e6 {[%clk 01:32:47]} {[%emt 00:00:14]} 7. a4 {[%clk 01:31:58]}
{[%emt 00:01:07]} Be7 {[%clk 01:30:11]} {[%emt 00:03:05]} 8. O-O {[%clk
01:30:26]} {[%emt 00:02:01]} Qc7 {[%clk 01:28:24]} {[%emt 00:02:18]} 9. Bb3
{[%clk 01:24:49]} {[%emt 00:06:07]} Bd7 {[%clk 01:21:46]} {[%emt 00:07:08]} 10.
Be3 {[%clk 01:19:51]} {[%emt 00:05:28]} Nc6 {[%clk 01:18:09]} {[%emt 00:04:08]}
11. Qe2 {[%clk 01:13:38]} {[%emt 00:06:41]} O-O 12. f4 {[%clk 01:13:38]} Rab8
13. Kh1 {[%clk 01:13:38]} Rfc8 14. Nf3 {[%clk 01:13:38]} Na5 15. Bd4 {[%clk
01:13:38]} Nxb3 16. cxb3 {[%clk 01:13:38]} b5 17. Rac1 {[%clk 01:13:38]} Qb7 18.
e5 {[%clk 01:13:38]} Ne8 19. Ng5 {[%clk 01:13:38]} h6 20. Nge4 {[%clk
01:13:38]} bxa4 21. bxa4 {[%clk 01:13:38]} d5 22. Ng3 {[%clk 01:13:38]} Rc4 23.
Bg1 {[%clk 01:13:38]} Qxb2 24. Rc2 {[%clk 01:13:38]} Qb7 25. f5 {[%clk
01:13:38]} exf5 26. Nxd5 {[%clk 01:13:38]} Rxc2 27. Nxe7+ {[%clk 01:13:38]} Kf8
28. Qxc2 {[%clk 01:13:38]} Kxe7 29. Bc5+ {[%clk 01:13:38]} Kd8 30. Nxf5 {[%clk
01:13:38]} Bxf5 31. Qxf5 {[%clk 01:13:38]} Rc8 32. Rd1+ {[%clk 01:13:38]} Kc7
33. Rd7+ {[%clk 01:13:38]} 1-0

[Event "NJSK 2021 Meisjes A&B"]
[Site "Almelo, Netherlands"]
[Date "2021.08.01"]
[Round "1.3"]
[White "Cordes, Jule"]
[Black "Venema, Katja"]
[Result "1-0"]
[TimeControl "90min/40moves + 30sec/move"]
[WhiteElo "1790"]
[BlackElo "1356"]

1. d4 {[%clk 01:30:57]} {[%emt 00:00:03]} d5 {[%clk 01:30:53]} {[%emt
00:00:08]} 2. c4 {[%clk 01:31:19]} {[%emt 00:00:07]} c6 {[%clk 01:31:14]}
{[%emt 00:00:09]} 3. Nc3 {[%clk 01:31:37]} {[%emt 00:00:12]} Nf6 {[%clk
01:31:33]} {[%emt 00:00:11]} 4. Nf3 {[%clk 01:31:53]} {[%emt 00:00:14]} Bf5
{[%clk 01:31:39]} {[%emt 00:00:24]} 5. cxd5 {[%clk 01:31:37]} {[%emt 00:00:47]}
cxd5 {[%clk 01:31:44]} {[%emt 00:00:24]} 6. Qb3 {[%clk 01:31:37]} {[%emt
00:00:30]} Qd7 {[%clk 01:31:06]} {[%emt 00:01:07]} 7. Ne5 {[%clk 01:26:33]}
{[%emt 00:05:35]} Qc7 {[%clk 01:27:06]} {[%emt 00:04:30]} 8. Nxd5 {[%clk
01:16:18]} {[%emt 00:10:46]} Nxd5 {[%clk 01:19:58]} {[%emt 00:07:38]} 9. Qxd5
{[%clk 01:16:25]} {[%emt 00:00:22]} e6 {[%clk 01:18:33]} {[%emt 00:01:56]} 10.
Qb5+ {[%clk 01:14:27]} {[%emt 00:02:27]} Nc6 {[%clk 01:17:30]} {[%emt
00:01:33]} 11. Bd2 {[%clk 01:03:12]} {[%emt 00:11:46]} a6 {[%clk 01:13:25]}
{[%emt 00:04:35]} 12. Qc4 {[%clk 01:02:33]} {[%emt 00:01:08]} Qb6 {[%clk
01:11:05]} {[%emt 00:02:51]} 13. Nxc6 {[%clk 00:59:32]} {[%emt 00:03:31]} Qxc6
{[%clk 01:09:04]} {[%emt 00:02:31]} 14. Qxc6+ {[%clk 00:58:39]} {[%emt
00:01:23]} bxc6 {[%clk 01:09:29]} {[%emt 00:00:04]} 15. Rc1 {[%clk 00:58:37]}
{[%emt 00:00:32]} Kd7 {[%clk 01:08:27]} {[%emt 00:01:33]} 16. f3 {[%clk
00:54:26]} {[%emt 00:04:40]} a5 {[%clk 01:04:31]} {[%emt 00:04:27]} 17. e4
{[%clk 00:53:00]} {[%emt 00:01:55]} Bg6 {[%clk 01:04:49]} {[%emt 00:00:12]} 18.
Be2 {[%clk 00:50:32]} {[%emt 00:02:59]} Bb4 {[%clk 00:59:23]} {[%emt 00:05:55]}
19. Bc3 {[%clk 00:36:58]} {[%emt 00:14:04]} f6 {[%clk 00:55:27]} {[%emt
00:04:26]} 20. O-O {[%clk 00:35:59]} {[%emt 00:01:29]} Rhc8 {[%clk 00:51:21]}
{[%emt 00:04:37]} 21. Rfd1 {[%clk 00:34:24]} {[%emt 00:02:04]} Bf7 {[%clk
00:48:09]} {[%emt 00:03:42]} 22. Bc4 {[%clk 00:29:35]} {[%emt 00:05:20]} Ke7
{[%clk 00:45:40]} {[%emt 00:02:59]} 23. Bb3 {[%clk 00:15:51]} {[%emt 00:14:14]}
c5 {[%clk 00:34:31]} {[%emt 00:11:38]} 24. d5 {[%clk 00:14:04]} {[%emt
00:02:18]} Ra6 {[%clk 00:27:51]} {[%emt 00:07:09]} 25. a3 {[%clk 00:11:44]}
{[%emt 00:02:51]} Bxc3 {[%clk 00:27:43]} {[%emt 00:00:37]} 26. Rxc3 {[%clk
00:12:12]} {[%emt 00:00:02]} a4 {[%clk 00:25:44]} {[%emt 00:02:30]} 27. dxe6
{[%clk 00:12:15]} {[%emt 00:00:26]} Bxe6 {[%clk 00:24:55]} {[%emt 00:01:18]} 28.
Bxe6 {[%clk 00:12:18]} {[%emt 00:00:27]} Kxe6 {[%clk 00:24:39]} {[%emt
00:00:46]} 29. Rd5 {[%clk 00:08:23]} {[%emt 00:04:26]} c4 {[%clk 00:21:43]}
{[%emt 00:03:25]} 30. Rb5 {[%clk 00:08:35]} {[%emt 00:00:18]} g6 {[%clk
00:15:14]} {[%emt 00:06:59]} 31. Rb4 {[%clk 00:08:45]} {[%emt 00:00:20]} Ke5
{[%clk 00:13:13]} {[%emt 00:02:31]} 32. Rcxc4 {[%clk 00:08:41]} {[%emt
00:00:34]} Rca8 {[%clk 00:13:04]} {[%emt 00:00:39]} 33. Kf2 {[%clk 00:08:28]}
{[%emt 00:00:43]} h5 {[%clk 00:12:55]} {[%emt 00:00:39]} 34. Ke3 {[%clk
00:08:02]} {[%emt 00:00:56]} g5 {[%clk 00:12:57]} {[%emt 00:00:28]} 35. Rb5+
{[%clk 00:06:45]} {[%emt 00:01:47]} Ke6 {[%clk 00:12:49]} {[%emt 00:00:38]} 36.
Rbb4 {[%clk 00:04:25]} {[%emt 00:02:50]} Ke5 {[%clk 00:12:18]} {[%emt
00:01:00]} 37. g3 {[%clk 00:04:14]} {[%emt 00:00:42]} R8a7 {[%clk 00:12:06]}
{[%emt 00:00:42]} 38. f4+ {[%clk 00:04:16]} {[%emt 00:00:27]} Ke6 {[%clk
00:11:32]} {[%emt 00:01:04]} 39. Rb5 {[%clk 00:01:10]} {[%emt 00:03:37]} gxf4+
{[%clk 00:10:50]} {[%emt 00:01:11]} 40. Kxf4 {[%clk 00:01:13]} {[%emt
00:00:28]} Rh7 {[%clk 00:10:21]} {[%emt 00:00:59]} 41. Rcc5 {[%clk 00:01:01]}
{[%emt 00:00:42]} h4 {[%clk 00:10:07]} {[%emt 00:00:43]} 42. g4 {[%clk
00:30:05]} {[%emt 00:01:27]} Rd6 {[%clk 00:39:40]} {[%emt 00:00:57]} 43. Rc2
{[%clk 00:25:45]} {[%emt 00:04:50]} Rhd7 {[%clk 00:39:09]} {[%emt 00:01:01]} 44.
Rh5 {[%clk 00:25:09]} {[%emt 00:01:06]} Rd2 {[%clk 00:38:57]} {[%emt 00:00:42]}
45. Rhc5 {[%clk 00:19:34]} {[%emt 00:06:04]} R7d4 {[%clk 00:37:58]} {[%emt
00:01:29]} 46. Rc6+ {[%clk 00:18:27]} {[%emt 00:01:38]} Rd6 {[%clk 00:37:34]}
{[%emt 00:00:53]} 47. Rxd2 {[%clk 00:16:13]} {[%emt 00:02:45]} Rxc6 {[%clk
00:37:57]} {[%emt 00:00:07]} 48. g5 {[%clk 00:15:47]} {[%emt 00:00:56]} fxg5+
{[%clk 00:37:51]} {[%emt 00:00:36]} 49. Kxg5 {[%clk 00:16:05]} {[%emt
00:00:12]} Ke5 {[%clk 00:38:01]} {[%emt 00:00:20]} 50. Re2 {[%clk 00:14:22]}
{[%emt 00:02:12]} Re6 {[%clk 00:37:35]} {[%emt 00:00:56]} 51. Kxh4 {[%clk
00:14:32]} {[%emt 00:00:21]} Kf4 {[%clk 00:37:44]} {[%emt 00:00:21]} 52. Kh5
{[%clk 00:13:05]} {[%emt 00:01:57]} Kf3 {[%clk 00:37:53]} {[%emt 00:00:20]} 53.
Re1 {[%clk 00:12:45]} {[%emt 00:00:50]} Kf2 {[%clk 00:38:11]} {[%emt 00:00:13]}
54. Rc1 {[%clk 00:12:42]} {[%emt 00:00:34]} Rxe4 {[%clk 00:38:18]} {[%emt
00:00:22]} 55. h4 {[%clk 00:11:16]} {[%emt 00:01:56]} Kg3 {[%clk 00:38:25]}
{[%emt 00:00:23]} 56. Rc3+ {[%clk 00:10:47]} {[%emt 00:00:59]} Kf4 {[%clk
00:38:35]} {[%emt 00:00:20]} 57. Rc5 {[%clk 00:10:27]} {[%emt 00:00:51]} Kg3
{[%clk 00:38:36]} {[%emt 00:00:27]} 58. Rc3+ {[%clk 00:10:14]} {[%emt
00:00:44]} Kf4 {[%clk 00:38:56]} {[%emt 00:00:10]} 59. Kg6 {[%clk 00:09:46]}
{[%emt 00:00:57]} Kg4 {[%clk 00:37:50]} {[%emt 00:01:36]} 60. h5 {[%clk
00:09:22]} {[%emt 00:00:54]} Re6+ {[%clk 00:37:53]} {[%emt 00:00:27]} 61. Kf7
{[%clk 00:09:28]} {[%emt 00:00:24]} Ra6 {[%clk 00:37:23]} {[%emt 00:01:02]} 62.
Rc5 {[%clk 00:09:45]} {[%emt 00:00:12]} Rh6 {[%clk 00:37:35]} {[%emt 00:00:17]}
63. Rc4+ {[%emt 00:02:02]} 1-0

[Event "NJSK 2021 Meisjes A&B"]
[Site "Almelo, Netherlands"]
[Date "2021.08.01"]
[Round "1.4"]
[White "Duson, Stella"]
[Black "Basa, Manasvita"]
[Result "0-1"]
[TimeControl "90min/40moves + 30sec/move"]
[WhiteElo "1259"]
[BlackElo "1711"]

1. e4 {[%clk 01:30:57]} {[%emt 00:00:03]} e5 {[%clk 01:30:56]} {[%emt
00:00:04]} 2. Nf3 {[%clk 01:31:17]} {[%emt 00:00:10]} Nc6 {[%clk 01:31:17]}
{[%emt 00:00:10]} 3. Bc4 {[%clk 01:31:20]} {[%emt 00:00:26]} Bc5 {[%clk
01:31:40]} {[%emt 00:00:07]} 4. c3 {[%clk 01:31:18]} {[%emt 00:00:31]} Nf6
{[%clk 01:32:01]} {[%emt 00:00:10]} 5. d3 {[%clk 01:31:38]} {[%emt 00:00:10]}
d6 {[%clk 01:32:16]} {[%emt 00:00:15]} 6. Bb3 {[%clk 01:32:00]} {[%emt
00:00:09]} h6 {[%clk 01:32:26]} {[%emt 00:00:20]} 7. h3 {[%clk 01:32:16]}
{[%emt 00:00:13]} O-O {[%clk 01:32:11]} {[%emt 00:00:46]} 8. Nbd2 {[%clk
01:32:22]} {[%emt 00:00:23]} Be6 {[%clk 01:32:15]} {[%emt 00:00:26]} 9. Bc2
{[%clk 01:32:20]} {[%emt 00:00:31]} d5 {[%clk 01:32:22]} {[%emt 00:00:24]} 10.
Nf1 {[%clk 01:28:16]} {[%emt 00:04:34]} dxe4 {[%clk 01:21:22]} {[%emt
00:11:30]} 11. dxe4 {[%clk 01:21:32]} {[%emt 00:07:13]} Qxd1+ {[%clk 01:20:08]}
{[%emt 00:01:44]} 12. Bxd1 {[%clk 01:17:48]} {[%emt 00:04:15]} Nxe4 {[%clk
01:20:27]} {[%emt 00:00:11]} 13. Be3 {[%clk 01:14:45]} {[%emt 00:03:33]} f5
{[%clk 01:18:34]} {[%emt 00:02:23]} 14. Bc2 {[%clk 01:04:47]} {[%emt 00:10:28]}
Be7 {[%clk 01:14:17]} {[%emt 00:04:47]} 15. Bxe4 {[%clk 01:01:12]} {[%emt
00:04:04]} fxe4 {[%clk 01:14:38]} {[%emt 00:00:10]} 16. N3d2 {[%clk 01:00:30]}
{[%emt 00:01:13]} b5 {[%clk 00:57:58]} {[%emt 00:17:10]} 17. Nxe4 {[%clk
00:52:52]} {[%emt 00:08:08]} b4 {[%clk 00:58:00]} {[%emt 00:00:28]} 18. Bc5
{[%clk 00:48:38]} {[%emt 00:04:43]} bxc3 {[%clk 00:56:48]} {[%emt 00:01:42]} 19.
bxc3 {[%clk 00:45:34]} {[%emt 00:03:34]} Rf4 {[%clk 00:53:24]} {[%emt
00:03:54]} 20. Nfd2 {[%clk 00:43:25]} {[%emt 00:02:39]} Bd5 {[%clk 00:47:13]}
{[%emt 00:06:41]} 21. f3 {[%clk 00:37:56]} {[%emt 00:05:59]} Rb8 {[%clk
00:45:22]} {[%emt 00:02:21]} 22. c4 {[%clk 00:33:00]} {[%emt 00:05:27]} Bxe4
{[%clk 00:40:48]} {[%emt 00:05:03]} 23. Bxe7 {[%clk 00:32:38]} {[%emt
00:00:53]} Bxf3 {[%clk 00:39:56]} {[%emt 00:01:21]} 24. Nxf3 {[%clk 00:32:42]}
{[%emt 00:00:26]} Nxe7 {[%clk 00:40:20]} {[%emt 00:00:06]} 25. O-O {[%clk
00:27:34]} {[%emt 00:05:38]} Rxc4 {[%clk 00:37:26]} {[%emt 00:03:24]} 26. Nxe5
{[%clk 00:26:48]} {[%emt 00:01:15]} Rc2 {[%clk 00:36:50]} {[%emt 00:01:07]} 27.
Rfc1 {[%clk 00:22:04]} {[%emt 00:05:13]} Rbb2 {[%clk 00:36:55]} {[%emt
00:00:26]} 28. Rxc2 {[%clk 00:20:28]} {[%emt 00:02:06]} Rxc2 {[%clk 00:37:18]}
{[%emt 00:00:07]} 29. a4 {[%clk 00:19:42]} {[%emt 00:01:16]} Nd5 {[%clk
00:34:42]} {[%emt 00:03:06]} 30. Rd1 {[%clk 00:17:23]} {[%emt 00:02:48]} Nc3
{[%clk 00:31:37]} {[%emt 00:03:36]} 31. Rd8+ {[%clk 00:16:49]} {[%emt
00:01:05]} Kh7 {[%clk 00:31:50]} {[%emt 00:00:16]} 32. a5 {[%clk 00:17:08]}
{[%emt 00:00:11]} Re2 {[%clk 00:18:16]} {[%emt 00:14:05]} 33. Nc4 {[%clk
00:12:17]} {[%emt 00:05:20]} Re4 {[%clk 00:17:23]} {[%emt 00:01:23]} 34. Nd2
{[%clk 00:07:40]} {[%emt 00:05:07]} Ra4 {[%clk 00:16:26]} {[%emt 00:01:26]} 35.
Rc8 {[%clk 00:07:18]} {[%emt 00:00:52]} Nb5 {[%clk 00:13:08]} {[%emt 00:03:49]}
36. Nb3 {[%clk 00:06:33]} {[%emt 00:01:15]} Ra3 {[%clk 00:13:22]} {[%emt
00:00:17]} 37. Nc5 {[%clk 00:06:29]} {[%emt 00:00:33]} Rxa5 {[%clk 00:13:19]}
{[%emt 00:00:33]} 38. Ne6 {[%clk 00:06:40]} {[%emt 00:00:19]} Ra1+ {[%clk
00:13:35]} {[%emt 00:00:14]} 39. Kf2 {[%clk 00:06:55]} {[%emt 00:00:11]} Rc1
{[%clk 00:14:00]} {[%emt 00:00:08]} 40. h4 {[%clk 00:06:34]} {[%emt 00:00:52]}
h5 {[%clk 00:11:36]} {[%emt 00:02:54]} 41. Kf3 {[%clk 00:06:19]} {[%emt
00:00:44]} Rc6 {[%clk 00:08:19]} {[%emt 00:03:48]} 42. Re8 {[%clk 00:05:15]}
{[%emt 00:01:33]} a5 {[%clk 00:07:30]} {[%emt 00:01:20]} 43. Ke4 {[%clk
00:04:30]} {[%emt 00:01:16]} Nd6+ {[%clk 00:06:00]} {[%emt 00:01:59]} 44. Kd5
{[%clk 00:04:23]} {[%emt 00:00:37]} Rc2 {[%clk 00:03:06]} {[%emt 00:03:24]} 45.
Ra8 {[%clk 00:04:16]} {[%emt 00:00:37]} Nc4 {[%clk 00:02:08]} {[%emt 00:01:27]}
46. Kd4 {[%clk 00:04:23]} {[%emt 00:00:24]} Kg6 {[%clk 00:00:41]} {[%emt
00:01:58]} 47. Nxc7 {[%clk 00:04:41]} {[%emt 00:00:11]} Nb6 {[%clk 00:00:32]}
{[%emt 00:00:39]} 48. Rxa5 {[%clk 00:04:44]} {[%emt 00:00:27]} Rxc7 {[%clk
00:00:49]} {[%emt 00:00:14]} 49. Ra6 {[%clk 00:04:59]} {[%emt 00:00:15]} Rc6
{[%clk 00:01:00]} {[%emt 00:00:19]} 50. Ke5 {[%clk 00:04:52]} {[%emt 00:00:36]}
Nd7+ {[%clk 00:01:11]} {[%emt 00:00:19]} 51. Kf4 {[%clk 00:05:08]} {[%emt
00:00:13]} Rxa6 {[%clk 00:01:36]} {[%emt 00:00:07]} 52. g4 {[%clk 00:05:32]}
{[%emt 00:00:05]} Ra4+ {[%clk 00:01:59]} {[%emt 00:00:07]} 53. Kf3 {[%clk
00:05:59]} {[%emt 00:00:02]} hxg4+ {[%clk 00:02:16]} {[%emt 00:00:14]} 54. Kg3
{[%clk 00:05:52]} {[%emt 00:00:37]} Kf5 {[%clk 00:02:41]} {[%emt 00:00:05]} 55.
Kf2 {[%clk 00:06:11]} {[%emt 00:00:11]} Kf4 {[%clk 00:02:52]} {[%emt 00:00:19]}
56. Ke2 {[%clk 00:06:28]} {[%emt 00:00:13]} g3 {[%clk 00:03:10]} {[%emt
00:00:12]} 57. Kf1 {[%clk 00:06:54]} {[%emt 00:00:03]} Kf3 {[%clk 00:03:27]}
{[%emt 00:00:14]} 58. Kg1 {[%clk 00:07:17]} {[%emt 00:00:06]} Ra1# {[%clk
00:03:51]} {[%emt 00:00:08]} 0-1

[Event "NJSK 2021 Meisjes A&B"]
[Site "Almelo, Netherlands"]
[Date "2021.08.01"]
[Round "1.5"]
[White "Van Essen, Marieke"]
[Black "Maris, Evi"]
[Result "0-1"]
[TimeControl "90min/40moves + 30sec/move"]
[WhiteElo "1610"]
[BlackElo "1232"]

1. e4 {[%clk 01:30:58]} {[%emt 19:43:25]} e5 {[%clk 01:30:56]} {[%emt
00:00:05]} 2. Nf3 {[%clk 01:31:24]} {[%emt 00:00:03]} Nc6 {[%clk 01:31:21]}
{[%emt 00:00:06]} 3. Bc4 {[%clk 01:31:49]} {[%emt 00:00:06]} Bc5 {[%clk
01:31:46]} {[%emt 00:00:04]} 4. Nc3 {[%clk 01:32:07]} {[%emt 00:00:12]} Nf6
{[%emt 00:00:20]} 5. d3 {[%clk 01:32:25]} h6 {[%clk 01:32:30]} {[%emt
00:00:07]} 6. Be3 {[%clk 01:32:45]} {[%emt 00:00:10]} Bd4 {[%clk 01:32:25]}
{[%emt 00:00:35]} 7. Bxd4 {[%clk 01:32:31]} {[%emt 00:00:44]} exd4 {[%clk
01:32:46]} {[%emt 00:00:09]} 8. Ne2 {[%clk 01:32:50]} {[%emt 00:00:12]} d5
{[%clk 01:33:00]} {[%emt 00:00:16]} 9. exd5 {[%clk 01:32:57]} {[%emt 00:00:22]}
Nxd5 {[%clk 01:33:21]} {[%emt 00:00:08]} 10. h3 {[%clk 01:32:37]} {[%emt
00:00:51]} O-O {[%clk 01:33:36]} {[%emt 00:00:15]} 11. O-O {[%clk 01:32:56]}
{[%emt 00:00:11]} Nf6 {[%clk 01:33:43]} {[%emt 00:00:23]} 12. Bb5 {[%clk
01:32:53]} {[%emt 00:00:33]} Ne7 {[%clk 01:33:42]} {[%emt 00:00:31]} 13. Nfxd4
{[%clk 01:31:39]} {[%emt 00:01:44]} a6 {[%clk 01:33:41]} {[%emt 00:00:31]} 14.
Bc4 {[%clk 01:31:18]} {[%emt 00:00:51]} b5 {[%clk 01:34:00]} {[%emt 00:00:11]}
15. Bb3 {[%clk 01:31:36]} {[%emt 00:00:11]} c5 {[%clk 01:34:20]} {[%emt
00:00:11]} 16. Nf3 {[%clk 01:31:47]} {[%emt 00:00:18]} Bb7 {[%clk 01:34:26]}
{[%emt 00:00:25]} 17. Ng3 {[%clk 01:31:20]} {[%emt 00:00:56]} Qc7 {[%clk
01:33:43]} {[%emt 00:01:15]} 18. a4 {[%clk 01:29:35]} {[%emt 00:02:15]} Rad8
{[%clk 01:33:55]} {[%emt 00:00:17]} 19. axb5 {[%clk 01:28:33]} {[%emt
00:01:32]} axb5 {[%clk 01:34:17]} {[%emt 00:00:07]} 20. Qe1 {[%clk 01:28:15]}
{[%emt 00:00:48]} Bxf3 {[%clk 01:34:24]} {[%emt 00:00:23]} 21. gxf3 {[%clk
01:28:33]} {[%emt 00:00:13]} Ng6 {[%clk 01:34:32]} {[%emt 00:00:22]} 22. Qe3
{[%clk 01:23:01]} {[%emt 00:06:01]} c4 {[%clk 01:34:30]} {[%emt 00:00:33]} 23.
dxc4 {[%clk 01:23:01]} {[%emt 00:00:30]} bxc4 {[%clk 01:34:54]} {[%emt
00:00:06]} 24. Ra7 {[%clk 01:21:15]} {[%emt 00:02:17]} Qc8 {[%clk 01:34:02]}
{[%emt 00:01:22]} 25. Ba4 {[%clk 01:15:15]} {[%emt 00:06:29]} Qxh3 {[%clk
01:34:08]} {[%emt 00:00:24]} 26. Bc6 {[%clk 01:13:00]} {[%emt 00:02:45]} Nh4
{[%emt 00:01:48]} 0-1